bitfinex/quotes_BTCUSD_20241130
["timestamp","ask_amount","ask_price","bid_price","bid_amount"]
[1732927176614,0.00416551,97174.0,97173.0,0.103772]
[1732927177133,0.205799,97182.0,97173.0,0.104772]
[1732927177372,0.102908,97174.0,97173.0,0.00192679]
[1732927177598,0.112908,97174.0,97173.0,0.00092679]
[1732927177810,0.11704856,97174.0,97173.0,0.00092679]
[1732927177991,0.11804856,97174.0,97173.0,0.00792679]
[1732927178238,0.11704856,97174.0,97173.0,0.00392679]
[1732927178471,0.11704856,97174.0,97173.0,0.00092679]
[1732927178680,0.11704856,97174.0,97173.0,0.105772]
[1732927179517,0.11704856,97174.0,97173.0,0.103772]
[1732927180490,0.11704856,97174.0,97173.0,0.104772]
[1732927180942,0.01414056,97174.0,97173.0,0.103772]
[1732927181188,0.11704856,97174.0,97173.0,0.106772]
[1732927181418,0.112908,97174.0,97173.0,0.103772]
[1732927181645,0.11704856,97174.0,97173.0,0.104772]
[1732927181849,0.11704856,97174.0,97173.0,0.105772]
[1732927182060,0.01414056,97174.0,97173.0,0.105772]
[1732927182282,0.01414056,97174.0,97173.0,0.109772]
[1732927182791,0.01414056,97174.0,97173.0,0.212681]
[1732927183234,0.01,97174.0,97173.0,0.211681]
[1732927183448,0.00414075,97174.0,97173.0,0.211681]
[1732927183665,0.01,97174.0,97173.0,0.213681]
[1732927184144,0.01,97187.0,97173.0,0.110772]
[1732927184371,0.01,97185.0,97174.0,0.17964521]
[1732927184577,0.01,97185.0,97179.0,0.0009823]
[1732927184578,0.102898,97184.0,97179.0,0.0009823]
[1732927184799,0.102898,97184.0,97180.0,0.10284521]
[1732927184800,0.1029,97181.0,97180.0,0.10284521]
[1732927185261,0.00388753,97181.0,97180.0,0.10284521]
[1732927185704,0.01,97186.0,97185.0,0.102896]
[1732927187267,0.01388967,97186.0,97185.0,0.102896]
[1732927187507,0.01588967,97186.0,97185.0,0.102896]
[1732927187919,0.01388967,97186.0,97185.0,0.102896]
[1732927188139,0.01,97186.0,97185.0,0.105896]
[1732927188363,0.01,97186.0,97185.0,0.106896]
[1732927188808,0.009,97186.0,97185.0,0.004]
[1732927189059,0.01288985,97186.0,97185.0,0.106896]
[1732927189308,0.009,97186.0,97185.0,0.106896]
[1732927189535,0.01288991,97186.0,97185.0,0.106896]
[1732927189990,0.01288991,97186.0,97185.0,0.004]
[1732927190436,0.11578491,97186.0,97185.0,0.004]
[1732927190886,0.25671861,97186.0,97185.0,0.004]
[1732927191123,0.25444198,97186.0,97185.0,0.004]
[1732927191579,0.24448491,97186.0,97185.0,0.003]
[1732927192022,0.14158991,97186.0,97179.0,0.0009823]
[1732927192256,0.00995707,97183.0,97179.0,0.0009823]
[1732927192492,0.009,97180.0,97171.0,0.206022]
[1732927192727,0.111901,97180.0,97175.0,0.102906]
[1732927193001,0.00389326,97179.0,97176.0,0.10284521]
[1732927193684,0.00389326,97179.0,97176.0,0.20575021]
[1732927193922,0.00389326,97179.0,97176.0,0.10284521]
[1732927194171,0.00389326,97179.0,97177.0,0.102904]
[1732927194429,0.102902,97179.0,97178.0,0.10284521]
[1732927194656,0.009,97180.0,97178.0,0.10284521]
[1732927195322,0.009,97180.0,97178.0,0.20574821]
[1732927195551,0.009,97180.0,97178.0,0.10484521]
[1732927196002,0.009,97180.0,97179.0,0.308705]
[1732927196236,0.009,97180.0,97178.0,0.10284521]
[1732927196237,0.009,97180.0,97178.0,0.10384521]
[1732927196717,0.009,97180.0,97179.0,0.102902]
[1732927196962,0.009,97180.0,97178.0,0.10384521]
[1732927197189,0.008,97180.0,97178.0,0.10384521]
[1732927197412,0.008,97180.0,97178.0,0.10284521]
[1732927197634,0.008,97180.0,97179.0,0.001]
[1732927198095,0.008,97180.0,97178.0,0.10284521]
[1732927198340,0.008,97180.0,97178.0,0.10384521]
[1732927198566,0.008,97180.0,97178.0,0.20674821]
[1732927198795,0.008,97180.0,97178.0,0.10384521]
[1732927199276,0.008,97180.0,97178.0,0.10284521]
[1732927199494,0.008,97180.0,97179.0,0.001]
[1732927200917,0.008,97180.0,97178.0,0.10284521]
[1732927201152,0.008,97180.0,97179.0,0.001]
[1732927201853,0.008,97180.0,97179.0,0.104902]
[1732927202357,0.008,97180.0,97179.0,0.002]
[1732927202590,0.0017328,97190.0,97187.0,0.102894]
[1732927202822,0.0017328,97190.0,97187.0,0.20573921]
[1732927203055,0.0017328,97190.0,97187.0,0.10284521]
[1732927203315,0.0017328,97190.0,97187.0,0.20573921]
[1732927203769,0.0017328,97190.0,97187.0,0.10284521]
[1732927204009,0.0237128,97188.0,97187.0,0.10284521]
[1732927204245,0.0227128,97188.0,97187.0,0.20573921]
[1732927204504,0.0227128,97188.0,97187.0,0.10284521]
[1732927204733,0.0227128,97188.0,97187.0,0.20573921]
[1732927204962,0.0247128,97188.0,97187.0,0.20573921]
[1732927205435,0.0247128,97188.0,97187.0,0.10284521]
[1732927206129,0.02859998,97188.0,97187.0,0.20573921]
[1732927206383,0.0207128,97188.0,97187.0,0.20573921]
[1732927206625,0.0227128,97188.0,97187.0,0.10284521]
[1732927206858,0.0247128,97188.0,97187.0,0.20573921]
[1732927207123,0.02660793,97188.0,97187.0,0.10284521]
[1732927207351,0.0227128,97188.0,97187.0,0.20573921]
[1732927207579,0.0227128,97188.0,97187.0,0.10484521]
[1732927208038,0.0227128,97188.0,97187.0,0.10284521]
[1732927208265,0.0227128,97188.0,97187.0,0.10484521]
[1732927208499,0.0227128,97188.0,97187.0,0.20773921]
[1732927208708,0.0207128,97188.0,97187.0,0.20773921]
[1732927208917,0.0207128,97188.0,97187.0,0.21173921]
[1732927209145,0.0207128,97188.0,97187.0,0.20773921]
[1732927209591,0.0207128,97188.0,97187.0,0.21173921]
[1732927209861,0.0207128,97188.0,97187.0,0.10684521]
[1732927210354,0.0207128,97188.0,97187.0,0.20973921]
[1732927211304,0.0207128,97188.0,97187.0,0.21173921]
[1732927211755,0.0207128,97188.0,97187.0,0.10884521]
[1732927213627,0.02766276,97188.0,97187.0,0.10884521]
[1732927216610,0.02766276,97188.0,97187.0,0.10534521]
[1732927217475,0.0207128,97188.0,97187.0,0.10534521]
[1732927217697,0.02766227,97188.0,97187.0,0.10534521]
[1732927217905,0.02766227,97188.0,97187.0,0.09894521]
[1732927219028,0.02766227,97188.0,97187.0,0.09694521]
[1732927219959,0.0207128,97188.0,97187.0,0.09694521]
[1732927220853,0.0207128,97188.0,97187.0,0.10294521]
[1732927221545,0.0207128,97188.0,97187.0,0.10181161]
[1732927221758,0.0207128,97188.0,97187.0,0.10381161]
[1732927221975,0.0207128,97188.0,97187.0,0.20670561]
[1732927222197,0.0207128,97188.0,97187.0,0.10381161]
[1732927224243,0.02767322,97188.0,97187.0,0.10381161]
[1732927224727,0.0207128,97188.0,97187.0,0.10381161]
[1732927224980,0.02768331,97188.0,97187.0,0.10381161]
[1732927226468,0.0207128,97188.0,97187.0,0.10381161]
[1732927228586,0.0207128,97188.0,97187.0,0.20670561]
[1732927229498,0.0207128,97188.0,97187.0,0.28570561]
[1732927229957,0.0207128,97188.0,97187.0,0.20670561]
[1732927231077,0.0197128,97188.0,97187.0,0.20670561]
[1732927231716,0.0197128,97188.0,97187.0,0.10381161]
[1732927232588,0.1796058,97188.0,97187.0,0.0108664]
[1732927232806,0.26933949,97188.0,97187.0,0.0108664]
[1732927233061,0.42399792,97188.0,97187.0,0.0108664]
[1732927233275,0.43499503,97188.0,97187.0,0.0108664]
[1732927233486,0.43499503,97188.0,97187.0,0.0088664]
[1732927233707,0.43499503,97188.0,97187.0,0.0008664]
[1732927234232,0.43999503,97188.0,97187.0,0.0008664]
[1732927234670,0.43799503,97188.0,97187.0,0.0008664]
[1732927236052,0.43999503,97188.0,97187.0,0.0008664]
[1732927241363,0.32714496,97188.0,97187.0,0.0008664]
[1732927241581,0.43999503,97188.0,97187.0,0.0008664]
[1732927241784,0.43699503,97188.0,97187.0,0.0008664]
[1732927242238,0.42803796,97188.0,97187.0,0.0008664]
[1732927242464,0.43003796,97188.0,97187.0,0.0008664]
[1732927242680,0.43999503,97188.0,97187.0,0.0008664]
[1732927242904,0.42803796,97188.0,97187.0,0.0008664]
[1732927243136,0.43799503,97188.0,97187.0,0.0008664]
[1732927243352,0.42503796,97188.0,97187.0,0.0008664]
[1732927243560,0.43499503,97188.0,97187.0,0.0008664]
[1732927243770,0.43499503,97188.0,97187.0,0.0018664]
[1732927243997,0.43499503,97188.0,97187.0,0.0008664]
[1732927244437,0.43699503,97188.0,97187.0,0.0008664]
[1732927244881,0.43699503,97188.0,97187.0,0.0018664]
[1732927245531,0.33410203,97188.0,97187.0,0.0018664]
[1732927245777,0.42803796,97188.0,97187.0,0.0018664]
[1732927246232,0.43699503,97188.0,97187.0,0.0018664]
[1732927246450,0.43699503,97188.0,97187.0,0.0028664]
[1732927246663,0.43699503,97188.0,97187.0,0.0018664]
[1732927246664,0.43499503,97188.0,97187.0,0.0018664]
[1732927246887,0.43699503,97188.0,97187.0,0.0008664]
[1732927247145,0.43499503,97188.0,97187.0,0.0008664]
[1732927248030,0.43699503,97188.0,97187.0,0.0008664]
[1732927248260,0.43699503,97188.0,97187.0,0.0018664]
[1732927248698,0.43699503,97188.0,97187.0,0.0008664]
[1732927248699,0.44299503,97188.0,97187.0,0.0008664]
[1732927249126,0.44599503,97188.0,97187.0,0.0008664]
[1732927250209,0.45058254,97188.0,97187.0,0.0008664]
[1732927260910,0.47358254,97188.0,97187.0,0.0008664]
[1732927262650,0.57642775,97188.0,97187.0,0.0008664]
[1732927263750,0.45058254,97188.0,97187.0,0.0008664]
[1732927270268,0.57642775,97188.0,97187.0,0.0008664]
[1732927271985,0.58642775,97188.0,97187.0,0.0008664]
[1732927272644,0.29365707,97179.0,97178.0,0.00017772]
[1732927272881,0.41955907,97179.0,97178.0,0.00017772]
[1732927273113,0.43106372,97179.0,97178.0,0.00017772]
[1732927273986,0.53490893,97179.0,97178.0,0.00017772]
[1732927274204,0.53590893,97179.0,97178.0,0.00017772]
[1732927275800,0.62718171,97179.0,97178.0,0.00017772]
[1732927276039,0.53590893,97179.0,97178.0,0.00017772]
[1732927276690,0.5660072,97179.0,97178.0,0.00017772]
[1732927279501,1.15316199,97179.0,97178.0,0.00017772]
[1732927279715,1.15316199,97179.0,97178.0,0.00104342]
[1732927279716,0.83436372,97179.0,97178.0,0.00104342]
[1732927280404,0.13436372,97179.0,97178.0,0.00104342]
[1732927280630,0.1366406,97179.0,97178.0,0.00104342]
[1732927281329,0.1286406,97179.0,97178.0,0.00104342]
[1732927281756,0.2866406,97179.0,97178.0,0.00104342]
[1732927281980,0.28436372,97179.0,97178.0,0.00104342]
[1732927282219,0.28336372,97179.0,97178.0,0.00104342]
[1732927282433,0.28336372,97179.0,97178.0,0.00204342]
[1732927282646,0.16250465,97179.0,97178.0,0.00204342]
[1732927282861,0.11440665,97179.0,97178.0,0.10488863]
[1732927283095,0.16150465,97179.0,97178.0,0.10488863]
[1732927283326,0.01150465,97179.0,97178.0,0.10488863]
[1732927283546,0.12240665,97179.0,97178.0,0.10488863]
[1732927283772,0.11440665,97179.0,97178.0,0.10488863]
[1732927283998,0.01150465,97179.0,97178.0,0.10488863]
[1732927284241,0.11440665,97179.0,97178.0,0.10488863]
[1732927284464,0.205802,97181.0,97178.0,0.12414163]
[1732927284680,0.252901,97180.0,97179.0,0.12209821]
[1732927285114,0.260901,97180.0,97179.0,0.12209821]
[1732927286091,0.260901,97180.0,97179.0,0.019253]
[1732927286275,0.260901,97180.0,97178.0,0.00104342]
[1732927286276,0.110902,97179.0,97178.0,0.00104342]
[1732927286527,0.11317889,97179.0,97178.0,0.00104342]
[1732927286983,0.12313596,97179.0,97178.0,0.00104342]
[1732927288748,0.12313596,97179.0,97178.0,0.00204342]
[1732927289656,0.27313603,97179.0,97178.0,0.00204342]
[1732927289910,0.27085907,97179.0,97178.0,0.00204342]
[1732927290367,0.27085907,97179.0,97178.0,0.00104342]
[1732927290606,0.27385907,97179.0,97178.0,0.00104342]
[1732927290836,0.27785907,97179.0,97178.0,0.00104342]
[1732927291753,0.32675907,97179.0,97178.0,0.00104342]
[1732927293793,0.33633396,97179.0,97178.0,0.00104342]
[1732927294429,0.41673396,97179.0,97178.0,0.00104342]
[1732927295354,0.43708976,97179.0,97178.0,0.00104342]
[1732927296494,0.56293497,97179.0,97178.0,0.00104342]
[1732927299851,0.43708976,97179.0,97178.0,0.00104342]
[1732927300071,0.26947689,97179.0,97178.0,0.00104342]
[1732927300289,0.27943396,97179.0,97178.0,0.00104342]
[1732927300522,0.28743396,97179.0,97178.0,0.00104342]
[1732927300738,0.27943396,97179.0,97178.0,0.00104342]
[1732927301020,0.13743396,97179.0,97178.0,0.00104342]
[1732927301238,0.13971085,97179.0,97178.0,0.00104342]
[1732927302123,0.26775383,97179.0,97178.0,0.00104342]
[1732927302346,0.27347689,97179.0,97178.0,0.00104342]
[1732927302576,0.27047689,97179.0,97178.0,0.00104342]
[1732927303508,0.26247689,97179.0,97178.0,0.00104342]
[1732927304594,0.26247689,97179.0,97178.0,0.00204342]
[1732927304857,0.27047689,97179.0,97178.0,0.00204342]
[1732927311410,0.28043396,97179.0,97178.0,0.00204342]
[1732927311879,0.28043396,97179.0,97178.0,0.00104342]
[1732927316350,0.27047689,97179.0,97178.0,0.10388863]
[1732927316552,0.27047689,97179.0,97178.0,0.13469123]
[1732927317905,0.00957489,97179.0,97178.0,0.11928607]
[1732927318119,0.00957489,97179.0,97178.0,0.22218907]
[1732927318337,0.0017314,97187.0,97178.0,0.11928607]
[1732927318548,0.102896,97186.0,97180.0,0.13369143]
[1732927318783,0.11249497,97186.0,97181.0,0.13364781]
[1732927319011,0.102896,97185.0,97182.0,0.0308026]
[1732927319224,0.00959897,97186.0,97183.0,0.10284521]
[1732927319433,0.0017314,97187.0,97184.0,0.0308026]
[1732927319666,0.0017314,97187.0,97185.0,0.13364781]
[1732927319876,0.0017314,97187.0,97186.0,0.0308026]
[1732927320085,0.0017314,97187.0,97186.0,0.13364781]
[1732927320086,0.0027314,97187.0,97186.0,0.13364781]
[1732927320357,0.1046254,97187.0,97186.0,0.13364781]
[1732927320566,0.0027314,97187.0,97186.0,0.13364781]
[1732927321211,0.41788247,97187.0,97186.0,0.0318026]
[1732927321421,0.41788247,97187.0,97186.0,0.0301026]
[1732927321918,0.41788247,97187.0,97186.0,0.001]
[1732927322327,0.41788247,97187.0,97186.0,0.003]
[1732927322745,0.15,97186.0,97176.0,0.0008664]
[1732927323022,0.102905,97177.0,97176.0,0.0008664]
[1732927323686,0.11257396,97177.0,97176.0,0.0008664]
[1732927324366,0.11357396,97177.0,97176.0,0.0018664]
[1732927324850,0.13380793,97177.0,97176.0,0.0018664]
[1732927325065,0.40453103,97177.0,97176.0,0.0018664]
[1732927325916,0.40453103,97177.0,97176.0,0.0048664]
[1732927326133,0.40353103,97177.0,97176.0,0.0038664]
[1732927326357,0.40453103,97177.0,97176.0,0.0008664]
[1732927326548,0.40353103,97177.0,97176.0,0.0008664]
[1732927327043,0.40653103,97177.0,97176.0,0.0008664]
[1732927327699,0.40753103,97177.0,97176.0,0.0008664]
[1732927328176,0.40653103,97177.0,97176.0,0.0008664]
[1732927328595,0.40853103,97177.0,97176.0,0.0008664]
[1732927334472,0.36233103,97177.0,97176.0,0.0008664]
[1732927334689,0.28553103,97177.0,97176.0,0.0008664]
[1732927335561,0.28353103,97177.0,97176.0,0.0008664]
[1732927335817,0.28053103,97177.0,97176.0,0.0008664]
[1732927337144,0.28153103,97177.0,97176.0,0.0008664]
[1732927337567,0.28053103,97177.0,97176.0,0.0008664]
[1732927337778,0.28253103,97177.0,97176.0,0.0008664]
[1732927338423,0.28053103,97177.0,97176.0,0.0008664]
[1732927338654,0.28153103,97177.0,97176.0,0.0008664]
[1732927340018,0.28353103,97177.0,97176.0,0.0008664]
[1732927340253,0.28053103,97177.0,97176.0,0.0008664]
[1732927340488,0.28153103,97177.0,97176.0,0.0008664]
[1732927340696,0.28453103,97177.0,97176.0,0.0008664]
[1732927340916,0.28353103,97177.0,97176.0,0.0008664]
[1732927341362,0.28553103,97177.0,97176.0,0.0008664]
[1732927342273,0.36233103,97177.0,97176.0,0.0008664]
[1732927342484,0.35933103,97177.0,97176.0,0.0008664]
[1732927342694,0.36233103,97177.0,97176.0,0.0008664]
[1732927342908,0.40853103,97177.0,97176.0,0.0008664]
[1732927345101,0.42872891,97177.0,97176.0,0.0008664]
[1732927350607,0.40853103,97177.0,97176.0,0.0008664]
[1732927352170,0.43153103,97177.0,97176.0,0.0008664]
[1732927359879,0.43153103,97177.0,97176.0,4e-07]
[1732927360100,0.53437624,97177.0,97176.0,4e-07]
[1732927369040,0.53437624,97177.0,97171.0,0.0002]
[1732927369041,0.181,97174.0,97173.0,6.9e-07]
[1732927369251,0.52658783,97174.0,97173.0,6.9e-07]
[1732927369472,0.53386243,97174.0,97173.0,6.9e-07]
[1732927369691,0.27591,97172.0,97171.0,6.9e-07]
[1732927369920,0.50635521,97172.0,97171.0,6.9e-07]
[1732927370145,0.52390713,97172.0,97171.0,6.9e-07]
[1732927370395,0.5338642,97172.0,97171.0,6.9e-07]
[1732927372223,0.5348642,97172.0,97171.0,6.9e-07]
[1732927372686,0.5358642,97172.0,97171.0,6.9e-07]
[1732927373162,0.5348642,97172.0,97171.0,6.9e-07]
[1732927373385,0.5338642,97172.0,97171.0,6.9e-07]
[1732927373607,0.01795707,97168.0,97167.0,2.9e-07]
[1732927373834,0.42374869,97168.0,97167.0,2.9e-07]
[1732927374080,0.42374869,97168.0,97151.0,8.2e-07]
[1732927374081,0.39848807,97152.0,97151.0,8.2e-07]
[1732927374260,0.42148807,97152.0,97151.0,6.038e-05]
[1732927374573,0.43102058,97152.0,97151.0,6.038e-05]
[1732927374992,0.41306351,97152.0,97151.0,6.038e-05]
[1732927375680,0.41406351,97152.0,97151.0,6.038e-05]
[1732927375893,0.41506351,97152.0,97151.0,6.038e-05]
[1732927376749,0.39206351,97152.0,97151.0,6.038e-05]
[1732927376966,0.26446351,97152.0,97151.0,6.038e-05]
[1732927379508,0.27548354,97152.0,97151.0,6.038e-05]
[1732927381342,0.12548354,97152.0,97151.0,6.038e-05]
[1732927381556,0.12548354,97152.0,97151.0,0.17900559]
[1732927381765,0.11446351,97152.0,97151.0,0.22890559]
[1732927382292,0.11246351,97152.0,97151.0,0.22890559]
[1732927382493,0.11446351,97152.0,97151.0,0.22890559]
[1732927382712,0.01053251,97152.0,97151.0,0.22890559]
[1732927383603,0.001,97152.0,97151.0,0.22890559]
[1732927383828,0.102925,97158.0,97151.0,0.33183759]
[1732927384044,0.00953279,97152.0,97151.0,0.12606038]
[1732927384275,0.02237339,97186.0,97152.0,0.0761]
[1732927384484,0.00227713,97172.0,97152.0,0.0761]
[1732927384697,0.102928,97155.0,97152.0,0.0761]
[1732927384919,0.51455,97172.0,97152.0,0.0761]
[1732927385165,0.102912,97170.0,97152.0,0.0761]
[1732927385382,0.102931,97152.0,97151.0,0.00192618]
[1732927385597,0.252931,97152.0,97151.0,0.00092618]
[1732927386793,0.102931,97152.0,97151.0,0.10377139]
[1732927387005,0.20585,97158.0,97151.0,0.10377139]
[1732927387240,0.102931,97152.0,97151.0,0.00092618]
[1732927387471,0.20585,97158.0,97151.0,0.02019458]
[1732927387702,0.617493,97167.0,97152.0,0.0192683]
[1732927387914,0.15,97167.0,97154.0,0.0486]
[1732927388138,0.102928,97155.0,97154.0,0.0486]
[1732927388384,0.102928,97155.0,97154.0,0.06786771]
[1732927388833,0.102928,97155.0,97154.0,0.17071292]
[1732927390610,0.102928,97155.0,97154.0,0.17271292]
[1732927392175,0.102928,97155.0,97154.0,0.17071292]
[1732927392380,0.102928,97155.0,97154.0,0.17070788]
[1732927393496,0.102928,97155.0,97154.0,0.17170788]
[1732927393952,0.205846,97160.0,97154.0,0.17170788]
[1732927394167,0.00227717,97168.0,97155.0,0.12210788]
[1732927394375,0.01106243,97169.0,97155.0,0.12210788]
[1732927394376,0.102924,97159.0,97155.0,0.12210788]
[1732927394590,0.1517316,97177.0,97155.0,0.12210788]
[1732927394591,0.15,97167.0,97156.0,0.15300453]
[1732927394831,0.1517316,97177.0,97156.0,0.15300453]
[1732927394832,0.00973974,97158.0,97157.0,0.60913932]
[1732927395048,0.001,97160.0,97157.0,0.22832374]
[1732927395267,0.001,97160.0,97158.0,0.15300253]
[1732927395475,0.150324,97159.0,97158.0,0.0001327]
[1732927395722,0.150324,97159.0,97134.0,0.0754]
[1732927395723,0.102931,97152.0,97134.0,0.0754]
[1732927396171,0.11123158,97152.0,97134.0,0.0754]
[1732927397741,0.11123158,97152.0,97151.0,0.00192618]
[1732927398212,0.11323158,97152.0,97151.0,0.00092618]
[1732927398649,0.11290971,97152.0,97151.0,0.00092618]
[1732927398876,0.11090971,97152.0,97151.0,0.00092618]
[1732927399499,0.11190971,97152.0,97151.0,0.00092618]
[1732927399921,0.11090971,97152.0,97151.0,0.00092618]
[1732927400827,0.11090971,97152.0,97151.0,0.00192618]
[1732927403274,0.11090971,97152.0,97151.0,0.18397139]
[1732927403275,0.00797871,97152.0,97151.0,0.18397139]
[1732927403485,0.102931,97152.0,97151.0,0.18397139]
[1732927403722,0.11114818,97152.0,97151.0,0.10477139]
[1732927404558,24.16899418,97152.0,97151.0,0.10477139]
[1732927405460,24.16899418,97152.0,97151.0,0.1355949]
[1732927405901,24.06606318,97152.0,97151.0,0.1355949]
[1732927407435,24.06606318,97152.0,97151.0,0.15486526]
[1732927408586,24.06606318,97152.0,97151.0,0.39869726]
[1732927408830,24.06779438,97152.0,97151.0,0.39869726]
[1732927409714,24.06779438,97152.0,97151.0,0.40369726]
[1732927409927,24.06779438,97152.0,97151.0,0.40269726]
[1732927410780,24.06879438,97152.0,97151.0,0.40569726]
[1732927411656,24.06879438,97152.0,97151.0,0.35560339]
[1732927411887,24.06879438,97152.0,97151.0,0.40568689]
[1732927413264,24.06879438,97152.0,97151.0,0.29275489]
[1732927413517,24.06879438,97152.0,97151.0,0.16185489]
[1732927414421,24.06879438,97152.0,97151.0,0.26478689]
[1732927414634,24.06879438,97152.0,97151.0,0.16185489]
[1732927418670,24.06863062,97152.0,97151.0,0.16184586]
[1732927419611,24.06863062,97152.0,97151.0,0.15684586]
[1732927419821,24.06863062,97152.0,97151.0,0.16084586]
[1732927420313,24.06763062,97152.0,97151.0,0.15784586]
[1732927420553,24.06863062,97152.0,97151.0,0.16084545]
[1732927421420,24.06863062,97152.0,97151.0,0.26377745]
[1732927421628,24.06863062,97152.0,97151.0,0.16084545]
[1732927422060,24.06863062,97152.0,97151.0,0.26377745]
[1732927422308,24.06863062,97152.0,97151.0,0.16084545]
[1732927422508,24.06863062,97152.0,97151.0,0.26377745]
[1732927422717,24.06863062,97152.0,97151.0,0.16084545]
[1732927423560,24.06863062,97152.0,97151.0,0.26377745]
[1732927426043,24.06863062,97152.0,97151.0,0.16084545]
[1732927426713,24.29576162,97152.0,97151.0,0.16084545]
[1732927427154,24.29576162,97152.0,97151.0,0.13003064]
[1732927427377,24.29576162,97152.0,97151.0,0.12603064]
[1732927427855,24.29476162,97152.0,97151.0,0.12603064]
[1732927428087,24.29576162,97152.0,97151.0,0.12903064]
[1732927428304,24.29576162,97152.0,97151.0,0.02618543]
[1732927428767,24.29576162,97152.0,97151.0,0.00692618]
[1732927429445,24.29576162,97152.0,97151.0,0.00392618]
[1732927429866,24.29676162,97152.0,97151.0,0.00392618]
[1732927430097,24.29576162,97152.0,97151.0,0.00092618]
[1732927430314,24.29476162,97152.0,97151.0,0.00092618]
[1732927430527,24.29576162,97152.0,97151.0,0.00092618]
[1732927430714,24.29676162,97152.0,97151.0,0.00092618]
[1732927430963,24.30985691,97152.0,97151.0,0.00092618]
[1732927433240,24.45985691,97152.0,97151.0,0.00092618]
[1732927433721,0.1242,97151.0,97111.0,0.0002]
[1732927433937,0.1242,97128.0,97111.0,0.0002]
[1732927434206,0.102973,97112.0,97111.0,0.00079907]
[1732927434623,0.10988247,97112.0,97111.0,0.00079907]
[1732927434840,0.00690947,97112.0,97111.0,0.00079907]
[1732927435053,0.10988247,97112.0,97111.0,0.00079907]
[1732927435265,0.102973,97112.0,97111.0,0.00079907]
[1732927435513,0.10988247,97112.0,97111.0,0.00079907]
[1732927436382,0.11188247,97112.0,97111.0,0.00979907]
[1732927436819,0.11188247,97112.0,97111.0,0.11264428]
[1732927438208,0.18968247,97112.0,97111.0,0.00979907]
[1732927438641,0.18951837,97112.0,97111.0,0.00979907]
[1732927440677,0.23591837,97112.0,97111.0,0.00979907]
[1732927442614,0.23391837,97112.0,97111.0,0.00166467]
[1732927442827,0.23491837,97112.0,97111.0,0.00766467]
[1732927443295,0.38491837,97112.0,97111.0,0.00266467]
[1732927444258,0.38391837,97112.0,97111.0,0.00166467]
[1732927444710,0.38491837,97112.0,97111.0,0.00366467]
[1732927444927,0.38391837,97112.0,97111.0,0.00266467]
[1732927445177,0.38391837,97112.0,97111.0,0.00166467]
[1732927445399,0.38391837,97112.0,97111.0,0.00266467]
[1732927445611,0.38391837,97112.0,97111.0,0.00366467]
[1732927446338,0.39493583,97112.0,97111.0,0.00366467]
[1732927450070,0.34853583,97112.0,97111.0,0.00366467]
[1732927451004,0.19853583,97112.0,97111.0,0.00366467]
[1732927451220,0.19853583,97112.0,97111.0,0.00266467]
[1732927451432,0.19853583,97112.0,97111.0,0.00166467]
[1732927451661,0.19853583,97112.0,97111.0,0.00466467]
[1732927452702,0.12073583,97112.0,97111.0,0.00466467]
[1732927453158,0.00690947,97112.0,97111.0,0.10750988]
[1732927453607,0.205941,97116.0,97111.0,0.10750988]
[1732927453830,0.102972,97114.0,97112.0,0.10284521]
[1732927454052,0.01076984,97120.0,97112.0,0.10284521]
[1732927454053,0.102972,97113.0,97112.0,0.10284521]
[1732927454699,0.179472,97113.0,97112.0,0.10284521]
[1732927455354,0.180472,97113.0,97112.0,0.10784521]
[1732927455900,0.180472,97113.0,97112.0,0.10984521]
[1732927456123,0.397594,97093.0,97092.0,0.014556]
[1732927456348,0.329494,97093.0,97092.0,0.014556]
[1732927456557,0.102994,97093.0,97092.0,0.014556]
[1732927456955,0.00227877,97094.0,97092.0,0.11740121]
[1732927457173,0.205971,97101.0,97092.0,0.014556]
[1732927457174,0.102994,97093.0,97092.0,0.014556]
[1732927457791,0.103994,97093.0,97092.0,0.014556]
[1732927458645,0.11094744,97093.0,97092.0,0.018556]
[1732927460166,0.21272623,97093.0,97092.0,0.018556]
[1732927461211,0.21172623,97093.0,97092.0,0.014556]
[1732927461668,0.21172623,97093.0,97092.0,0.015556]
[1732927462301,0.36172623,97093.0,97092.0,0.015556]
[1732927462536,0.35944744,97093.0,97092.0,0.015556]
[1732927464825,0.37062908,97093.0,97092.0,0.015556]
[1732927465437,0.37062908,97093.0,97092.0,0.016422]
[1732927469516,0.36180108,97093.0,97092.0,0.016422]
[1732927472972,0.50974629,97093.0,97092.0,0.016422]
[1732927473207,0.15,97092.0,97055.0,0.01]
[1732927473482,0.103026,97063.0,97058.0,0.00027889]
[1732927473686,0.00684751,97062.0,97059.0,0.10284521]
[1732927473932,0.103027,97062.0,97059.0,0.10284521]
[1732927474166,0.00684142,97061.0,97059.0,0.10284521]
[1732927474673,0.00059583,97061.0,97059.0,0.10284521]
[1732927474925,0.00684142,97060.0,97059.0,0.10284521]
[1732927475154,0.00059583,97061.0,97059.0,0.10784521]
[1732927475375,0.103029,97060.0,97059.0,0.005]
[1732927475607,0.10987042,97060.0,97059.0,0.005]
[1732927476076,0.00684142,97060.0,97059.0,0.005]
[1732927476555,0.00684142,97060.0,97059.0,0.10284521]
[1732927476778,0.00684142,97060.0,97059.0,0.20587521]
[1732927477011,0.00059583,97061.0,97059.0,0.10284521]
[1732927477240,0.00159583,97061.0,97060.0,0.10284521]
[1732927477718,0.10362283,97061.0,97060.0,0.10284521]
[1732927477964,0.11046353,97061.0,97060.0,0.10284521]
[1732927478188,0.00743653,97061.0,97060.0,0.10284521]
[1732927478667,0.00695057,97061.0,97060.0,0.10284521]
[1732927479152,0.00695057,97061.0,97060.0,0.20587421]
[1732927479368,0.00110987,97061.0,97060.0,0.20587421]
[1732927479860,0.00210987,97061.0,97060.0,0.21174031]
[1732927480987,0.00110987,97061.0,97060.0,0.21174031]
[1732927481211,0.00210987,97061.0,97060.0,0.21174031]
[1732927482084,0.00210987,97061.0,97060.0,0.10871131]
[1732927482557,0.00210987,97061.0,97060.0,0.35574031]
[1732927483016,0.00210987,97061.0,97060.0,0.38780196]
[1732927483254,0.00110987,97061.0,97060.0,0.38280196]
[1732927483694,0.00210987,97061.0,97060.0,0.38780196]
[1732927484143,0.00110987,97061.0,97060.0,0.38280196]
[1732927484375,0.00210987,97061.0,97060.0,0.38880196]
[1732927484619,0.00110987,97061.0,97060.0,0.38880196]
[1732927484827,0.00110987,97061.0,97060.0,0.39680196]
[1732927484828,0.00210987,97061.0,97060.0,0.39680196]
[1732927485564,0.00210987,97061.0,97060.0,0.40797859]
[1732927486474,0.0017322,97093.0,97086.0,0.01]
[1732927486726,0.0017322,97093.0,97087.0,0.10284521]
[1732927486938,0.00168572,97093.0,97087.0,0.10284521]
[1732927487152,0.00540377,97092.0,97089.0,0.102997]
[1732927487359,0.00540377,97092.0,97090.0,0.10284521]
[1732927487577,0.00168572,97093.0,97090.0,0.10284521]